[Event "EYCC Girls U12 2018"]
[Site "Riga"]
[Date "2018.08.24"]
[Round "5"]
[White "Mikheeva, Galina"]
[Black "Tsirekidze, Barbare"]
[Result "0-1"]
[ECO "C00"]
[WhiteElo "1776"]
[BlackElo "1413"]
[Annotator "NA"]
[PlyCount "162"]
[EventDate "2018.08.20"]
[EventType "swiss"]
[EventCountry "LAT"]
[SourceTitle "playchess.com"]
[Source "ChessBase"]
[SourceQuality "1"]
[TimeControl "40/5400+30:1800+30"]

1. e4 {[%emt 0:00:00]} e6 {[%emt 0:00:00]} 2. d4 {[%emt 0:00:00]} b6 {[%emt 0:00:00]} 3. Nf3 {[%emt 0:00:00]} Bb7 {[%emt 0:00:00]} 4. Nc3 {[%emt 0:00:08]} g6 {[%emt 0:00:24]} 5. Bg5 {[%emt 0:00:53]} Ne7 {[%emt 0:00:34]} 6. Qd2 {[%emt 0:00:21]} Bg7 {[%emt 0:00:33]} 7. Bd3 {[%emt 0:03:56]} d6 {[%emt 0:08:30]} 8. Bh6 {[%emt 0:01:33]} O-O {[%emt 0:00:23]} 9. O-O {[%emt 0:00:46]} Nd7 {[%emt 0:01:11]} 10. Bxg7 {[%emt 0:00:57]} Kxg7 {[%emt 0:00:10]} 11. Rfe1 {[%emt 0:00:16]} a6 {[%emt 0:00:57]} 12. a4 {[%emt 0:01:54]} d5 {[%emt 0:11:58]} 13. exd5 {[%emt 0:02:30]} Nxd5 {[%emt 0:00:48]} 14. Nxd5 {[%emt 0:02:09]} Bxd5 {[%emt 0:02:21]} 15. Be4 {[%emt 0:02:58]} Nf6 {[%emt 0:02:28]} 16. Bxd5 {[%emt 0:01:26]} Qxd5 {[%emt 0:03:57]} 17. Rad1 {[%emt 0:22:27]} Qd6 {[%emt 0:10:59]} 18. c4 {[%emt 0:12:35]} c5 {[%emt 0:11:30]} 19. Qc3 {[%emt 0:01:04]} Rad8 {[%emt 0:05:52]} 20. h3 {[%emt 0:03:15]} Qc7 {[%emt 0:09:19]} 21. Ne5 {[%emt 0:25:15]} cxd4 {[%emt 0:04:39]} 22. Rxd4 {[%emt 0:00:03]} Rxd4 {[%emt 0:00:28]} 23. Qxd4 {[%emt 0:00:03]} Rd8 {[%emt 0:00:41]} 24. Qc3 {[%emt 0:00:04]} Qd6 {[%emt 0:07:09]} 25. Ng4 {[%emt 0:02:27]} Qd4 {[%emt 0:00:28]} 26. Qxd4 {[%emt 0:01:32]} Rxd4 {[%emt 0:00:08]} 27. Ne3 {[%emt 0:03:35]} Rd2 {[%emt 0:03:41]} 28. Rb1 {[%emt 0:07:44]} Kf8 {[%emt 0:02:03]} 29. f3 {[%emt 0:03:42]} Ke7 {[%emt 0:00:21]} 30. Kf1 {[%emt 0:00:11]} Kd7 {[%emt 0:03:59]} 31. Ke1 {[%emt 0:00:12]} Rd4 {[%emt 0:00:12]} 32. Rd1 {[%emt 0:01:21]} Rxd1+ {[%emt 0:00:37]} 33. Kxd1 {[%emt 0:00:07]} Kd6 {[%emt 0:00:09]} 34. Kd2 {[%emt 0:00:41]} Kc5 {[%emt 0:00:22]} 35. Kc3 {[%emt 0:00:08]} a5 {[%emt 0:00:07]} 36. b3 {[%emt 0:01:13]} Nh5 {[%emt 0:01:25]} 37. Ng4 {[%emt 0:00:29]} Nf4 {[%emt 0:00:19]} 38. Ne3 {[%emt 0:00:29]} f5 {[%emt 0:00:44]} 39. h4 {[%emt 0:00:34]} h6 {[%emt 0:04:24]} 40. Kd2 {[%emt 0:00:00]} Kb4 {[%emt 0:00:00]} 41. g3 {[%emt 0:09:54]} Nh5 {[%emt 0:01:37]} 42. g4 {[%emt 0:05:27]} Nf4 {[%emt 0:00:34]} 43. Kc2 {[%emt 0:01:26]} Ne2 {[%emt 0:01:52]} 44. gxf5 {[%emt 0:06:50]} gxf5 {[%emt 0:02:21]} 45. Kd3 {[%emt 0:01:01]} Nc1+ {[%emt 0:00:05]} 46. Kd4 {[%emt 0:00:12]} Kxb3 {[%emt 0:01:08]} 47. Nd5 {[%emt 0:07:17]} Ne2+ {[%emt 0:24:29]} 48. Ke5 {[%emt 0:01:34]} Kxc4 {[%emt 0:00:45]} 49. Nxb6+ {[%emt 0:00:19]} Kd3 {[%emt 0:04:36]} 50. Kxe6 {[%emt 0:00:55]} f4 {[%emt 0:00:05]} 51. Nd5 {[%emt 0:00:56]} Nc3 {[%emt 0:01:28]} 52. Nxf4+ {[%emt 0:00:21]} Kd4 53. Ng6 {[%emt 0:00:46]} Nxa4 {[%emt 0:00:00]} 54. f4 {[%emt 0:00:03]} Nc5+ {[%emt 0:00:00]} 55. Ke7 {[%emt 0:00:40]} Ke4 {[%emt 0:00:14]} 56. Ne5 Kxf4 {[%emt 0:00:27]} 57. Nc4 {[%emt 0:01:19]} a4 {[%emt 0:00:09]} 58. Kf6 {[%emt 0:00:12]} Kg4 {[%emt 0:00:15]} 59. Kg6 {[%emt 0:00:06]} h5 {[%emt 0:00:05]} 60. Kf6 {[%emt 0:01:03]} Kxh4 {[%emt 0:00:10]} 61. Ke5 {[%emt 0:00:15]} Kg3 {[%emt 0:00:20]} 62. Kd4 {[%emt 0:00:16]} h4 {[%emt 0:01:35]} 63. Ne3 {[%emt 0:00:24]} h3 {[%emt 0:00:20]} 64. Kc3 {[%emt 0:00:58]} Kf2 {[%emt 0:01:01]} 65. Ng4+ {[%emt 0:00:05]} Kg1 {[%emt 0:00:11]} 66. Kb4 {[%emt 0:00:16]} h2 {[%emt 0:01:46]} 67. Nxh2 {[%emt 0:00:03]} Kxh2 {[%emt 0:00:02]} 68. Ka3 {[%emt 0:00:09]} Kg3 {[%emt 0:00:05]} 69. Kb4 {[%emt 0:00:10]} Kf3 {[%emt 0:00:07]} 70. Ka3 {[%emt 0:00:02]} Ke3 {[%emt 0:00:06]} 71. Ka2 {[%emt 0:01:38]} Kd3 {[%emt 0:00:05]} 72. Ka3 {[%emt 0:00:14]} Kc3 {[%emt 0:00:12]} 73. Ka2 {[%emt 0:00:05]} Kb4 {[%emt 0:00:10]} 74. Kb2 {[%emt 0:00:16]} Ne4 {[%emt 0:00:23]} 75. Ka2 {[%emt 0:00:25]} a3 {[%emt 0:00:17]} 76. Kb1 {[%emt 0:01:03]} Kb3 {[%emt 0:00:10]} 77. Ka1 {[%emt 0:00:05]} Ng3 {[%emt 0:00:23]} 78. Kb1 {[%emt 0:00:05]} Ne2 {[%emt 0:00:03]} 79. Ka1 {[%emt 0:00:07]} Nd4 {[%emt 0:00:06]} 80. Kb1 {[%emt 0:00:07]} Nc2 {[%emt 0:00:08]} 81. Kc1 {[%emt 0:00:08]} a2 {[%emt 0:00:03]} 0-1

[Event "EYCC Girls U12 2018"]
[Site "Riga"]
[Date "2018.08.24"]
[Round "5"]
[White "Alekseenko, Mariya"]
[Black "Shubenkova, Veronika"]
[Result "0-1"]
[ECO "A08"]
[WhiteElo "1750"]
[BlackElo "1700"]
[Annotator "NA"]
[PlyCount "156"]
[EventDate "2018.08.20"]
[EventType "swiss"]
[EventCountry "LAT"]
[SourceTitle "playchess.com"]
[Source "ChessBase"]
[SourceQuality "1"]
[TimeControl "40/5400+30:1800+30"]

1. Nf3 {[%emt 0:00:00]} d5 {[%emt 0:00:27]} 2. g3 {[%emt 0:00:00]} c5 {[%emt 0:01:26]} 3. Bg2 {[%emt 0:00:00]} Nc6 {[%emt 0:01:35]} 4. O-O {[%emt 0:00:01]} e5 {[%emt 0:00:59]} 5. d3 {[%emt 0:00:09]} f6 {[%emt 0:00:47]} 6. Nbd2 {[%emt 0:00:19]} Be6 {[%emt 0:01:29]} 7. b3 {[%emt 0:05:09]} Qd7 {[%emt 0:01:39]} 8. e4 {[%emt 0:01:46]} d4 {[%emt 0:01:01]} 9. Nh4 {[%emt 0:15:40]} O-O-O {[%emt 0:00:42]} 10. a4 {[%emt 0:06:48]} Bd6 {[%emt 0:02:36]} 11. Nc4 {[%emt 0:00:10]} Nge7 {[%emt 0:01:52]} 12. a5 {[%emt 0:02:04]} g5 {[%emt 0:01:20]} 13. Nxd6+ {[%emt 0:02:49]} Qxd6 {[%emt 0:00:06]} 14. Nf5 {[%emt 0:00:09]} Nxf5 {[%emt 0:07:48]} 15. exf5 {[%emt 0:00:13]} Bd5 {[%emt 0:03:56]} 16. Be4 {[%emt 0:01:53]} Bxe4 {[%emt 0:06:15]} 17. dxe4 {[%emt 0:00:05]} h5 {[%emt 0:00:43]} 18. h3 {[%emt 0:01:43]} h4 {[%emt 0:01:04]} 19. g4 {[%emt 0:06:09]} Kc7 {[%emt 0:05:35]} 20. Bd2 {[%emt 0:01:34]} Ra8 {[%emt 0:06:51]} 21. Qe2 {[%emt 0:01:56]} Rhd8 {[%emt 0:01:51]} 22. Qc4 {[%emt 0:02:21]} b6 {[%emt 0:06:09]} 23. Rfb1 {[%emt 0:02:12]} Rdb8 {[%emt 0:04:45]} 24. b4 {[%emt 0:04:05]} Nd8 {[%emt 0:05:41]} 25. f3 {[%emt 0:13:47]} b5 {[%emt 0:05:23]} 26. Qxc5+ {[%emt 0:05:54]} Qxc5 {[%emt 0:00:07]} 27. bxc5 {[%emt 0:00:05]} Kc6 {[%emt 0:00:38]} 28. c3 {[%emt 0:00:23]} d3 {[%emt 0:01:40]} 29. a6 {[%emt 0:02:01]} Kxc5 {[%emt 0:03:51]} 30. Ra3 {[%emt 0:09:00]} Nf7 {[%emt 0:00:48]} 31. Be3+ {[%emt 0:00:19]} Kc6 {[%emt 0:00:06]} 32. Rd1 {[%emt 0:01:43]} Rd8 {[%emt 0:00:27]} 33. Rb3 {[%emt 0:00:19]} Rd7 {[%emt 0:02:29]} 34. Kf1 {[%emt 0:00:24]} Rad8 {[%emt 0:00:25]} 35. Ke1 {[%emt 0:00:35]} Ra8 {[%emt 0:01:51]} 36. c4 {[%emt 0:02:30]} bxc4 {[%emt 0:02:16]} 37. Rc3 {[%emt 0:00:14]} Kd6 {[%emt 0:07:52]} 38. Rxc4 {[%emt 0:00:14]} Ke7 {[%emt 0:00:16]} 39. Rc3 {[%emt 0:01:14]} Rad8 {[%emt 0:00:34]} 40. Kd2 {[%emt 0:00:00]} Ke8 {[%emt 0:00:00]} 41. Rb1 {[%emt 0:01:06]} Nd6 {[%emt 0:07:00]} 42. Rbb3 {[%emt 0:07:42]} Kf7 {[%emt 0:02:54]} 43. Kd1 {[%emt 0:01:04]} d2 {[%emt 0:01:44]} 44. Rb2 {[%emt 0:00:41]} Ke8 {[%emt 0:00:28]} 45. Rc5 {[%emt 0:03:15]} Ke7 {[%emt 0:01:49]} 46. Bxd2 {[%emt 0:00:15]} Ne8 {[%emt 0:00:49]} 47. Rbc2 {[%emt 0:00:54]} Rd3 {[%emt 0:02:00]} 48. Ke2 {[%emt 0:00:07]} R3d4 {[%emt 0:00:36]} 49. Rb5 {[%emt 0:01:32]} Nd6 {[%emt 0:06:17]} 50. Rbc5 {[%emt 0:09:09]} Ke8 {[%emt 0:02:42]} 51. Ba5 {[%emt 0:00:49]} Rd7 {[%emt 0:00:23]} 52. Rd2 {[%emt 0:05:04]} Rc4 {[%emt 0:03:24]} 53. Rcd5 {[%emt 0:00:20]} Rc6 {[%emt 0:00:21]} 54. Bb4 {[%emt 0:02:21]} Ke7 {[%emt 0:00:13]} 55. Ra2 {[%emt 0:00:15]} Ke8 {[%emt 0:00:51]} 56. Kd3 {[%emt 0:02:37]} Nb5 {[%emt 0:02:47]} 57. Rc2 {[%emt 0:03:07]} Rxc2 {[%emt 0:04:22]} 58. Kxc2 {[%emt 0:07:11]} Rxd5 {[%emt 0:01:10]} 59. exd5 {[%emt 0:00:06]} Nc7 {[%emt 0:00:46]} 60. d6 {[%emt 0:02:47]} Nxa6 {[%emt 0:00:06]} 61. Ba3 {[%emt 0:00:04]} Kd7 {[%emt 0:00:19]} 62. Kc3 {[%emt 0:00:25]} Nb8 {[%emt 0:00:09]} 63. Bc5 {[%emt 0:00:38]} a6 {[%emt 0:00:47]} 64. Kc4 {[%emt 0:00:15]} Kc6 {[%emt 0:00:16]} 65. d7 {[%emt 0:00:34]} Nxd7 {[%emt 0:00:41]} 66. Be7 {[%emt 0:00:20]} Nb6+ {[%emt 0:00:12]} 67. Kd3 {[%emt 0:00:12]} Nd5 {[%emt 0:00:13]} 68. Bd8 {[%emt 0:00:21]} Kd7 {[%emt 0:00:48]} 69. Ba5 {[%emt 0:00:14]} Nf4+ {[%emt 0:00:13]} 70. Ke4 {[%emt 0:01:28]} Nxh3 {[%emt 0:00:13]} 71. Bb6 {[%emt 0:00:11]} Nf4 {[%emt 0:00:26]} 72. Bg1 {[%emt 0:00:12]} a5 {[%emt 0:00:25]} 73. Ke3 {[%emt 0:00:36]} Kc6 {[%emt 0:00:16]} 74. Bh2 {[%emt 0:00:12]} Kd5 {[%emt 0:00:24]} 75. Kd2 {[%emt 0:00:16]} a4 {[%emt 0:00:15]} 76. Kc3 {[%emt 0:00:15]} a3 {[%emt 0:00:06]} 77. Kb3 {[%emt 0:00:13]} Kd4 {[%emt 0:00:11]} 78. Kxa3 {[%emt 0:00:33]} Ke3 {[%emt 0:00:04]} 0-1

[Event "EYCC Girls U12 2018"]
[Site "Riga"]
[Date "2018.08.24"]
[Round "5"]
[White "Karmanova, Olga Dm"]
[Black "Gaal, Zsoka"]
[Result "1-0"]
[ECO "A02"]
[WhiteElo "1730"]
[BlackElo "2008"]
[Annotator "NA"]
[PlyCount "109"]
[EventDate "2018.08.20"]
[EventType "swiss"]
[EventCountry "LAT"]
[SourceTitle "playchess.com"]
[Source "ChessBase"]
[SourceQuality "1"]
[TimeControl "40/5400+30:1800+30"]

1. f4 {[%emt 0:00:00]} Nh6 {[%emt 0:00:30]} 2. Nf3 {[%emt 0:00:14]} g6 {[%emt 0:00:40]} 3. g3 {[%emt 0:00:08]} Bg7 {[%emt 0:00:45]} 4. Bg2 {[%emt 0:00:19]} d5 {[%emt 0:00:40]} 5. d3 {[%emt 0:01:12]} O-O {[%emt 0:01:15]} 6. O-O {[%emt 0:01:33]} c5 {[%emt 0:00:36] A03: Bird's Opening with 1...d5} 7. c3 {[%emt 0:00:30]} d4 {[%emt 0:05:52]} 8. e4 {[%emt 0:03:31]} dxe3 {[%emt 0:10:09]} 9. Bxe3 {[%emt 0:00:18]} Nd7 {[%emt 0:03:03]} (9... Qd6 10. Na3 Ng4 11. Nc4 Nxe3 12. Nxd6 Nxd1 13. Nxc8 Rxc8 14. Raxd1 Nc6 15. Nd2 e6 16. Ne4 Ne7 17. Kf2 {½-½ (17) Pourramezanali,A (2510)-Lorparizangeneh,S (2524) Teheran 2017}) 10. h3 {[%emt 0:02:28]} Nf5 {[%emt 0:05:30]} 11. Bf2 {[%emt 0:00:17]} Qc7 {[%emt 0:02:30]} 12. Nbd2 $146 {[%emt 0:04:13]} ({Predecessor:} 12. g4 Nd6 13. Qe2 Re8 {1-0 (30) Moe,M-Petersen,F Esbjerg 1972}) 12... Nd6 {[%emt 0:16:49]} 13. Ne4 {[%emt 0:03:22]} Nxe4 {[%emt 0:03:55]} 14. dxe4 {[%emt 0:00:06]} e5 {[%emt 0:04:34]} 15. f5 {[%emt 0:00:55]} Nf6 {[%emt 0:02:11]} 16. Qc2 {[%emt 0:01:00]} gxf5 {[%emt 0:08:18]} 17. exf5 {[%emt 0:01:07]} e4 {[%emt 0:00:50]} 18. Nh4 {[%emt 0:01:14]} Qe5 {[%emt 0:13:07]} 19. Rae1 {[%emt 0:03:19]} Re8 {[%emt 0:04:30]} 20. g4 {[%emt 0:00:23]} h6 {[%emt 0:05:09] [#]} 21. Nf3 $16 {[%emt 0:01:22]} Qf4 {[%emt 0:02:55]} 22. Be3 {[%emt 0:00:24]} Qc7 {[%emt 0:02:32]} 23. Nd2 {[%emt 0:00:20]} Bd7 {[%emt 0:01:59]} 24. Bf4 {[%emt 0:00:47]} Qb6 {[%emt 0:01:04]} 25. Nc4 {[%emt 0:01:43]} Qa6 {[%emt 0:01:20]} 26. Nd6 {[%emt 0:00:56]} Rf8 {[%emt 0:00:47]} 27. Nxe4 {[%emt 0:00:53]} Nxe4 {[%emt 0:00:21]} 28. Bxe4 {[%emt 0:00:35]} Bc6 {[%emt 0:00:41]} 29. Bxc6 {[%emt 0:03:49]} Qxc6 {[%emt 0:00:10]} 30. f6 {[%emt 0:00:50]} Qxf6 {[%emt 0:00:57]} 31. Be5 {[%emt 0:00:23]} Qh4 {[%emt 0:00:30]} 32. Kg2 {[%emt 0:02:45]} Qd8 {[%emt 0:00:50]} 33. Rd1 {[%emt 0:02:35]} Qb6 {[%emt 0:00:33]} 34. Rd6 {[%emt 0:02:46]} Qb5 {[%emt 0:00:45]} 35. Bxg7 {[%emt 0:00:58]} Kxg7 {[%emt 0:00:04]} 36. Qf2 {[%emt 0:00:46]} f5 {[%emt 0:00:41]} 37. gxf5 {[%emt 0:00:36]} Kh7 {[%emt 0:00:39]} 38. Qd2 {[%emt 0:03:53]} Rg8+ {[%emt 0:00:29]} 39. Kh2 {[%emt 0:01:04]} Rg5 {[%emt 0:00:37]} 40. Re1 {[%emt 0:00:00]} Rag8 {[%emt 0:00:00]} 41. Re7+ {[%emt 0:02:16]} R8g7 {[%emt 0:04:21]} 42. Rxg7+ {[%emt 0:00:27]} Kxg7 {[%emt 0:00:27]} 43. Rd7+ {[%emt 0:00:41]} Kh8 {[%emt 0:03:50]} 44. f6 {[%emt 0:00:47]} Qf1 {[%emt 0:02:11]} 45. Rd8+ {[%emt 0:01:08]} Kh7 {[%emt 0:00:38]} 46. Qd7+ {[%emt 0:02:14]} Kg6 {[%emt 0:00:24]} 47. Rg8+ {[%emt 0:02:24]} Kh5 {[%emt 0:01:01]} 48. Rxg5+ {[%emt 0:00:22]} Kxg5 {[%emt 0:00:19]} 49. Qg7+ {[%emt 0:00:13]} Kf5 {[%emt 0:01:29]} 50. f7 {[%emt 0:01:22]} Qf2+ {[%emt 0:04:19]} 51. Qg2 {[%emt 0:00:30]} Qf4+ {[%emt 0:00:29]} 52. Qg3 {[%emt 0:01:18]} Qd2+ {[%emt 0:00:49]} 53. Kg1 {[%emt 0:00:43]} Qd1+ {[%emt 0:02:17]} 54. Kg2 {[%emt 0:00:18]} Qd5+ {[%emt 0:01:49]} 55. Qf3+ {[%emt 0:00:08]} 1-0

[Event "EYCC Girls U12 2018"]
[Site "Riga"]
[Date "2018.08.24"]
[Round "5"]
[White "Cherepanova, Evita"]
[Black "Kozachenko, Maria"]
[Result "0-1"]
[ECO "B90"]
[WhiteElo "1660"]
[BlackElo "1792"]
[Annotator "NA"]
[PlyCount "114"]
[EventDate "2018.08.20"]
[EventType "swiss"]
[EventCountry "LAT"]
[SourceTitle "playchess.com"]
[Source "ChessBase"]
[SourceQuality "1"]
[TimeControl "40/5400+30:1800+30"]

1. e4 {[%emt 0:00:00]} c5 {[%emt 0:00:00]} 2. Nf3 {[%emt 0:00:00]} d6 {[%emt 0:00:00]} 3. d4 {[%emt 0:00:00]} cxd4 {[%emt 0:00:00]} 4. Nxd4 {[%emt 0:00:00]} Nf6 {[%emt 0:00:03]} 5. Nc3 {[%emt 0:00:00]} a6 {[%emt 0:00:09]} 6. f3 {[%emt 0:00:00]} e5 {[%emt 0:00:25]} 7. Nb3 {[%emt 0:00:07]} Be6 {[%emt 0:00:29]} 8. Be3 {[%emt 0:00:10]} h5 {[%emt 0:00:24]} 9. Qd2 {[%emt 0:01:19]} Nbd7 {[%emt 0:00:34]} 10. O-O-O {[%emt 0:01:39]} Be7 {[%emt 0:03:06]} 11. h4 {[%emt 0:02:08]} b5 {[%emt 0:02:29]} 12. Kb1 {[%emt 0:02:49]} O-O {[%emt 0:03:42]} 13. Rg1 {[%emt 0:19:24]} Nb6 {[%emt 0:07:14]} 14. Qf2 {[%emt 0:18:23]} Nc4 {[%emt 0:04:51]} 15. Bxc4 {[%emt 0:00:40]} Bxc4 {[%emt 0:01:08]} 16. Bb6 {[%emt 0:11:15]} Qc8 {[%emt 0:04:01]} 17. Ba5 {[%emt 0:02:25]} Be6 {[%emt 0:05:40]} 18. Rd2 {[%emt 0:13:41]} Rb8 {[%emt 0:06:39]} 19. Bb4 {[%emt 0:00:49]} Rd8 {[%emt 0:07:04]} 20. Rgd1 {[%emt 0:00:36]} Bxb3 {[%emt 0:02:42]} 21. axb3 {[%emt 0:00:38]} Qc7 {[%emt 0:01:13]} 22. Nd5 {[%emt 0:02:01]} Nxd5 {[%emt 0:00:39]} 23. Rxd5 {[%emt 0:00:06]} a5 {[%emt 0:00:36]} 24. Be1 {[%emt 0:01:45]} b4 {[%emt 0:01:53]} 25. g4 {[%emt 0:02:37]} hxg4 {[%emt 0:03:03]} 26. fxg4 {[%emt 0:00:07]} Rdc8 {[%emt 0:01:51]} 27. R1d2 {[%emt 0:07:10]} Ra8 {[%emt 0:07:59]} 28. Rb5 {[%emt 0:02:52]} Qc6 {[%emt 0:02:47]} 29. Qe2 {[%emt 0:00:17]} Ra6 {[%emt 0:02:15]} 30. Rdd5 {[%emt 0:03:59]} Rca8 {[%emt 0:01:23]} 31. Qc4 {[%emt 0:00:21]} Qd7 {[%emt 0:01:40]} 32. Rb8+ {[%emt 0:01:43]} Rxb8 {[%emt 0:05:21]} 33. Qxa6 {[%emt 0:00:10]} Qxg4 {[%emt 0:00:21]} 34. Qa7 {[%emt 0:01:27]} Rc8 {[%emt 0:07:26]} 35. Qb7 {[%emt 0:00:13]} Re8 {[%emt 0:00:45]} 36. Qb5 {[%emt 0:01:08]} Kf8 {[%emt 0:00:42]} 37. Qxa5 {[%emt 0:01:37]} Qxe4 {[%emt 0:00:13]} 38. Bxb4 {[%emt 0:01:09]} Rc8 {[%emt 0:03:56]} 39. Bc3 {[%emt 0:02:10]} Qxh4 {[%emt 0:02:02]} 40. Rd1 {[%emt 0:00:00]} Qe4 {[%emt 0:00:00]} 41. Qa6 {[%emt 0:01:38]} Ra8 {[%emt 0:05:02]} 42. Qf1 {[%emt 0:00:19]} Ra7 {[%emt 0:02:40]} 43. Qh3 {[%emt 0:00:31]} f6 {[%emt 0:12:45]} 44. Qh8+ {[%emt 0:00:37]} Kf7 {[%emt 0:00:19]} 45. Rg1 {[%emt 0:00:53]} Bf8 {[%emt 0:00:27]} 46. Qh5+ {[%emt 0:02:33]} Ke7 {[%emt 0:00:09]} 47. b4 {[%emt 0:10:55]} Qc4 {[%emt 0:04:40]} 48. Qg6 {[%emt 0:02:16]} Qa2+ {[%emt 0:01:37]} 49. Kc1 {[%emt 0:00:08]} Qf7 {[%emt 0:00:11]} 50. Qg2 {[%emt 0:00:53]} Qc4 {[%emt 0:02:11]} 51. Qg6 {[%emt 0:00:10]} d5 {[%emt 0:01:58]} 52. Rg4 {[%emt 0:05:21]} Qf1+ {[%emt 0:01:15]} 53. Kd2 {[%emt 0:00:14]} Qf2+ {[%emt 0:00:51]} 54. Kd3 {[%emt 0:00:09]} Qf3+ {[%emt 0:01:55]} 55. Kd2 {[%emt 0:00:37]} Ra1 {[%emt 0:00:38]} 56. Rg1 {[%emt 0:01:11]} Qf2+ {[%emt 0:00:08]} 57. Kd3 {[%emt 0:00:16]} e4+ {[%emt 0:00:09]} 0-1

[Event "EYCC Girls U12 2018"]
[Site "Riga"]
[Date "2018.08.26"]
[Round "6"]
[White "Gaal, Zsoka"]
[Black "Tsirekidze, Barbare"]
[Result "1/2-1/2"]
[ECO "A06"]
[WhiteElo "2008"]
[BlackElo "1413"]
[Annotator "NA"]
[PlyCount "145"]
[EventDate "2018.08.20"]
[EventType "swiss"]
[EventCountry "LAT"]
[SourceTitle "playchess.com"]
[Source "ChessBase"]
[SourceQuality "1"]
[TimeControl "40/5400+30:1800+30"]

1. g3 {[%emt 0:00:08]} d5 {[%emt 0:01:02]} 2. Nf3 {[%emt 0:00:17]} e6 {[%emt 0:00:23]} 3. Bg2 {[%emt 0:00:52]} Nf6 {[%emt 0:00:17]} 4. O-O {[%emt 0:01:00]} Be7 {[%emt 0:00:24]} 5. d4 {[%emt 0:00:26]} b6 {[%emt 0:01:37]} 6. c4 {[%emt 0:01:40]} Bb7 {[%emt 0:00:22]} 7. Nc3 {[%emt 0:07:03]} O-O {[%emt 0:00:56]} 8. Ne5 {[%emt 0:00:10]} h6 {[%emt 0:10:27]} 9. cxd5 {[%emt 0:06:33]} exd5 {[%emt 0:01:00]} 10. Bf4 {[%emt 0:03:02]} a6 {[%emt 0:14:02]} 11. Rc1 {[%emt 0:05:22]} c6 {[%emt 0:21:02]} 12. Qb3 {[%emt 0:14:57]} Re8 {[%emt 0:09:43]} 13. e4 {[%emt 0:09:44]} b5 {[%emt 0:13:54]} 14. a3 {[%emt 0:05:12]} Bf8 {[%emt 0:08:17]} 15. Rfd1 {[%emt 0:03:20]} g5 {[%emt 0:07:51]} 16. Be3 {[%emt 0:02:17]} Bg7 {[%emt 0:00:08]} 17. h3 {[%emt 0:02:44]} c5 {[%emt 0:02:43]} 18. exd5 {[%emt 0:07:00]} c4 {[%emt 0:00:11]} 19. Nxc4 {[%emt 0:16:05]} Nxd5 {[%emt 0:01:20]} 20. Nxd5 {[%emt 0:00:39]} Bxd5 {[%emt 0:00:05]} 21. Bxd5 {[%emt 0:00:22]} Qxd5 {[%emt 0:00:05]} 22. Nd2 {[%emt 0:00:54]} Qd6 {[%emt 0:01:33]} 23. Nf3 {[%emt 0:01:58]} Nd7 {[%emt 0:00:30]} 24. Kg2 {[%emt 0:06:49]} Nb6 {[%emt 0:01:34]} 25. Ne5 {[%emt 0:02:03]} Qd5+ {[%emt 0:00:40]} 26. Qxd5 {[%emt 0:00:19]} Nxd5 {[%emt 0:00:03]} 27. Rc5 {[%emt 0:01:51]} Nxe3+ {[%emt 0:00:22]} 28. fxe3 {[%emt 0:00:02]} Bxe5 {[%emt 0:00:08]} 29. dxe5 {[%emt 0:00:13]} Rac8 {[%emt 0:00:46]} 30. Rdc1 {[%emt 0:00:46]} Rxc5 {[%emt 0:00:14]} 31. Rxc5 {[%emt 0:00:03]} Rd8 {[%emt 0:00:05]} 32. Kf3 {[%emt 0:00:54]} Rd2 {[%emt 0:01:03]} 33. Rc8+ {[%emt 0:00:33]} Kg7 {[%emt 0:00:06]} 34. Ra8 {[%emt 0:00:34]} Rxb2 {[%emt 0:00:35]} 35. Rxa6 {[%emt 0:00:04]} h5 {[%emt 0:01:38]} 36. Rb6 {[%emt 0:00:51]} Rb3 {[%emt 0:00:14]} 37. Ke4 {[%emt 0:00:38]} Rxa3 {[%emt 0:01:45]} 38. Rxb5 {[%emt 0:00:02]} Kg6 {[%emt 0:00:58]} 39. Rb6+ {[%emt 0:00:09]} Kg7 {[%emt 0:00:04]} 40. Rd6 {[%emt 0:00:00]} Ra2 {[%emt 0:00:00]} 41. Kf5 {[%emt 0:12:52]} Re2 {[%emt 0:07:37]} 42. Kxg5 {[%emt 0:07:52]} Rxe3 {[%emt 0:00:07]} 43. Kf4 {[%emt 0:00:40]} Re1 {[%emt 0:00:50]} 44. Rd3 {[%emt 0:01:21]} Kg6 {[%emt 0:02:37]} 45. h4 {[%emt 0:01:48]} Re2 {[%emt 0:06:09]} 46. Rd6+ {[%emt 0:04:15]} Kg7 {[%emt 0:00:19]} 47. Rd4 {[%emt 0:02:48]} Kg6 {[%emt 0:04:25]} 48. Re4 {[%emt 0:02:37]} Rf2+ {[%emt 0:01:27]} 49. Ke3 {[%emt 0:00:24]} Rf1 {[%emt 0:03:54]} 50. Rf4 {[%emt 0:01:05]} Re1+ {[%emt 0:01:21]} 51. Kd4 {[%emt 0:00:14]} Rd1+ {[%emt 0:01:46]} 52. Ke4 {[%emt 0:00:37]} Re1+ {[%emt 0:00:51]} 53. Kd5 {[%emt 0:00:21]} Rd1+ {[%emt 0:01:00]} 54. Kc6 {[%emt 0:00:23]} Rd3 {[%emt 0:00:51]} 55. Rf6+ {[%emt 0:00:27]} Kg7 {[%emt 0:00:07]} 56. Rf5 {[%emt 0:00:21]} Rxg3 {[%emt 0:00:30]} 57. Rxh5 {[%emt 0:00:01]} Kg6 {[%emt 0:01:50]} 58. Rh8 {[%emt 0:00:28]} Rd3 {[%emt 0:00:21]} 59. h5+ {[%emt 0:00:54]} Kg7 {[%emt 0:00:10]} 60. Ra8 {[%emt 0:00:25]} Rh3 {[%emt 0:01:33]} 61. Ra7 {[%emt 0:00:47]} Kf8 {[%emt 0:01:59]} 62. Kd7 {[%emt 0:01:03]} Rxh5 {[%emt 0:00:30]} 63. Ra5 {[%emt 0:00:30]} Kg7 {[%emt 0:01:23]} 64. Ke7 {[%emt 0:00:28]} Rf5 {[%emt 0:00:56]} 65. Kd6 {[%emt 0:00:55]} Kg6 {[%emt 0:00:41]} 66. Ra1 {[%emt 0:00:28]} Rf2 {[%emt 0:01:01]} 67. Re1 {[%emt 0:00:46]} Rg2 {[%emt 0:00:31]} 68. Rf1 {[%emt 0:00:20]} Re2 {[%emt 0:00:06]} 69. Rf3 {[%emt 0:00:33]} Re1 {[%emt 0:00:09]} 70. Rg3+ {[%emt 0:00:43]} Kf5 {[%emt 0:00:31]} 71. Rg2 {[%emt 0:00:30]} Rd1+ {[%emt 0:00:15]} 72. Ke7 {[%emt 0:00:11]} Kxe5 {[%emt 0:00:11]} 73. Kxf7 {[%emt 0:00:14]} 1/2-1/2